bitfinex-derivatives/quotes_ETHF0:USTF0_20250130
["timestamp","ask_amount","ask_price","bid_price","bid_amount"]
[1738264143024,0.61113,3272.4,3272.3,3.21873041]
[1738264143230,3.2078,3272.6,3272.3,2.60760041]
[1738264143422,0.0045861,3272.7,3272.6,0.6111]
[1738264143628,0.61102,3273.1,3273.0,0.61102]
[1738264144629,0.61105,3273.0,3272.9,0.61103]
[1738264147033,0.61101,3273.1,3273.0,0.61101]
[1738264147336,0.61101,3273.1,3273.0,3.71691041]
[1738264147522,3.2078,3273.4,3273.0,3.71691041]
[1738264147729,0.61099,3273.2,3273.0,3.71691041]
[1738264148030,0.61099,3273.2,3273.1,0.611]
[1738264148429,3.2078,3273.4,3273.0,3.10590041]
[1738264148735,3.81875,3273.4,3273.3,2.60760041]
[1738264149326,3.81875,3273.4,3273.3,3.21857041]
[1738264149522,3.81875,3273.4,3273.3,2.60760041]
[1738264150236,3.81875,3273.4,3273.3,3.21857041]
[1738264150536,0.61095,3273.4,3273.3,2.60760041]
[1738264153237,0.61095,3273.4,3273.3,3.21857041]
[1738264153836,0.61095,3273.4,3273.3,2.60760041]
[1738264155633,4.2336,3273.9,3273.4,0.61093]
[1738264155835,0.61087,3273.8,3273.7,2.60760041]
[1738264156235,0.61087,3273.8,3273.7,2.10760041]
[1738264158438,3.2078,3273.9,3273.8,0.61087]
[1738264158640,3.2078,3273.9,3273.8,1.10627]
[1738264159336,1.513,3274.5,3273.8,0.4954]
[1738264159337,4.7208,3274.5,3273.8,0.4954]
[1738264159539,0.61078,3274.3,3274.2,2.60760041]
[1738264163546,3.81856,3274.5,3274.4,0.61076]
[1738264164145,3.81856,3274.5,3274.2,2.60760041]
[1738264164146,0.61078,3274.4,3274.3,0.61077]
[1738264166643,0.61073,3274.6,3274.5,0.61074]
[1738264166843,0.61073,3274.6,3274.5,3.21834041]
[1738264167246,4.7212,3274.9,3274.5,3.21834041]
[1738264167247,3.7024,3274.9,3274.5,3.21834041]
[1738264167549,3.7024,3274.9,3274.6,0.5209]
[1738264167844,0.61071,3274.7,3274.6,1.13162]
[1738264168048,0.61071,3274.7,3274.6,3.12850041]
[1738264175151,0.61071,3274.7,3274.6,3.73922041]
[1738264175752,0.61071,3274.8,3274.6,3.73922041]
[1738264175958,0.6107,3274.8,3274.7,0.61071]
[1738264176153,0.61071,3274.7,3274.6,3.73921041]
[1738264176755,1.52662,3275.1,3274.6,3.73921041]
[1738264177061,1.52662,3275.1,3274.6,3.12850041]
[1738264177260,0.6107,3274.8,3274.7,0.61071]
[1738264177757,0.61069,3274.8,3274.7,0.4954]
[1738264178155,0.61069,3274.8,3274.7,1.10611]
[1738264180756,0.61069,3274.8,3274.7,0.4954]
[1738264182260,0.61069,3274.8,3274.7,0.9825]
[1738264182865,0.61069,3274.8,3274.7,1.59321]
[1738264184264,0.61069,3274.8,3274.7,0.9825]
[1738264185666,1.52663,3275.0,3274.7,0.4871]
[1738264185875,0.61069,3274.8,3274.7,0.4871]
[1738264189274,3.7295,3274.9,3274.6,2.60760041]
[1738264189481,0.61071,3274.7,3274.6,2.60760041]
[1738264189782,0.61071,3274.7,3274.6,3.21832041]
[1738264189981,0.61071,3274.7,3274.6,2.60760041]
[1738264190179,0.6107,3274.8,3274.6,3.21832041]
[1738264190382,0.61071,3274.7,3274.6,3.21832041]
[1738264190580,0.6107,3274.8,3274.6,3.21831041]
[1738264190788,0.61069,3274.8,3274.7,0.6107]
[1738264190981,3.2078,3274.9,3274.7,0.6107]
[1738264191175,3.2078,3274.9,3274.8,0.5213]
[1738264191176,3.81848,3274.9,3274.8,0.5213]
[1738264191979,3.7162,3275.5,3274.8,1.13199]
[1738264192187,5.38566,3275.5,3275.4,2.60760041]
[1738264192479,2.17786,3275.5,3275.4,2.60760041]
[1738264193479,0.61061,3275.2,3275.1,5.81998651]
[1738264193675,0.61061,3275.2,3275.1,0.0045861]
[1738264194787,0.61061,3275.2,3275.1,2.61218651]
[1738264199285,0.6106,3275.3,3275.1,3.22280651]
[1738264199485,0.6106,3275.3,3275.1,2.61218651]
[1738264199690,0.6106,3275.3,3275.2,0.61061]
[1738264200194,0.5084,3275.5,3275.2,0.61061]
[1738264200487,0.61053,3275.7,3275.5,0.61055]
[1738264200693,1.4747,3275.9,3275.4,3.2078]
[1738264200883,0.61054,3275.6,3275.5,0.5152]
[1738264201292,0.61056,3275.5,3275.4,3.2078]
[1738264202302,0.61056,3275.5,3275.4,3.81838]
[1738264202595,0.61056,3275.5,3275.4,3.2078]
[1738264205693,0.61061,3275.2,3275.1,0.0045861]
[1738264206788,3.81841,3275.2,3275.1,0.0045861]
[1738264207097,3.81841,3275.2,3275.1,0.00348733]
[1738264207693,0.61072,3274.6,3274.5,0.61074]
[1738264209390,0.61074,3274.5,3274.4,4.25375041]
[1738264209599,0.61074,3274.5,3274.4,3.74796041]
[1738264210503,0.61074,3274.6,3274.4,3.74796041]
[1738264210799,0.61074,3274.5,3274.4,3.74796041]
[1738264211293,0.61073,3274.6,3274.4,3.74796041]
[1738264211494,0.61073,3274.6,3274.5,2.60760041]
[1738264211894,0.61073,3274.6,3274.5,3.21834041]
[1738264212099,0.61073,3274.6,3274.5,2.60760041]
[1738264221505,1.5313061,3274.9,3274.4,0.5296]
[1738264221506,0.61074,3274.5,3274.4,0.5296]
[1738264221705,0.61078,3274.3,3274.2,3.2123861]
[1738264222503,0.61078,3274.3,3274.2,0.0045861]
[1738264223610,0.61078,3274.3,3274.2,2.61218651]
[1738264225010,0.61078,3274.3,3274.2,3.22298651]
[1738264225412,0.61078,3274.3,3274.2,2.61218651]
[1738264227809,0.61078,3274.3,3274.2,3.22298651]
[1738264229311,0.61078,3274.3,3274.2,6.43078651]
[1738264231310,0.4933,3274.5,3274.2,5.81998651]
[1738264231506,0.61074,3274.6,3274.5,0.61072]
[1738264231711,0.61072,3274.7,3274.6,0.61069]
[1738264231910,0.61072,3274.7,3274.6,4.35169]
[1738264232609,0.61072,3274.7,3274.6,4.35172]
[1738264233017,0.61072,3274.7,3274.6,3.741]
[1738264233310,0.61072,3274.7,3274.6,4.35172]
[1738264235007,0.61072,3274.7,3274.6,3.741]
[1738264237718,3.2078,3275.6,3274.7,1.52677]
[1738264237930,2.60760041,3276.1,3274.6,5.26782]
[1738264237931,0.5354,3276.1,3275.5,2.60760041]
[1738264238114,0.61046,3276.0,3275.9,2.60760041]
[1738264238312,1.053,3276.4,3275.9,2.60760041]
[1738264238515,0.61042,3276.3,3276.2,2.60760041]
[1738264238710,1.6634,3276.4,3276.2,2.60760041]
[1738264239221,1.053,3276.4,3276.2,2.60760041]
[1738264239719,1.6634,3276.4,3276.2,3.21801041]
[1738264241213,1.1393,3276.4,3276.2,3.21801041]
[1738264241614,0.61041,3276.3,3276.2,2.60760041]
[1738264241816,0.61041,3276.3,3276.2,3.21803041]
[1738264242317,1.1393,3276.4,3276.2,3.21803041]
[1738264244024,0.00267181,3276.3,3276.2,3.21803041]
[1738264245219,0.00267181,3276.3,3276.2,3.74113041]
[1738264246427,0.61308181,3276.3,3276.2,2.60760041]
[1738264247424,0.61308181,3276.3,3276.2,3.21803041]
[1738264247623,0.61308181,3276.3,3276.2,2.60760041]
[1738264247923,0.61308181,3276.3,3276.2,3.21803041]
[1738264248123,0.61308181,3276.3,3276.2,2.60760041]
[1738264248329,0.61308181,3276.3,3276.2,3.21803041]
[1738264249535,0.61308181,3276.3,3276.2,2.60760041]
[1738264249726,0.61308181,3276.3,3276.2,3.21803041]
[1738264251425,0.00267181,3276.3,3276.2,3.21803041]
[1738264253331,0.61308181,3276.3,3276.2,3.21803041]
[1738264255228,0.61308181,3276.3,3276.2,2.60760041]
[1738264255432,0.61308181,3276.3,3276.2,3.21803041]
[1738264256330,0.61308181,3276.3,3276.2,2.60760041]
[1738264258145,0.61308181,3276.3,3276.2,3.21803041]
[1738264258532,0.00267181,3276.3,3276.2,3.21803041]
[1738264260732,0.61028,3277.0,3276.9,0.61029]
[1738264261038,0.61028,3277.0,3276.9,2.60760041]
[1738264265548,0.61031,3276.8,3276.7,3.2078]
[1738264265859,0.61039,3276.4,3276.3,2.60760041]
[1738264272360,1.52583,3276.8,3276.3,2.60760041]
[1738264272658,0.61031,3276.8,3276.7,2.60760041]
[1738264272863,0.61031,3276.8,3276.7,3.21793041]
[1738264274357,0.61031,3276.8,3276.7,2.60760041]
[1738264280561,0.61031,3276.9,3276.7,2.60760041]
[1738264280760,0.61031,3276.9,3276.8,0.61029]
[1738264281260,0.61031,3276.8,3276.7,3.21792041]
[1738264281465,0.61031,3276.8,3276.7,2.60760041]
[1738264284166,0.61031,3276.8,3276.7,3.21793041]
[1738264284362,0.61031,3276.8,3276.7,2.60760041]
[1738264284568,0.61031,3276.8,3276.7,3.21793041]
[1738264286274,1.52565,3277.2,3276.7,2.60760041]
[1738264286464,0.6103,3276.9,3276.8,0.61031]
[1738264287471,1.5082,3277.4,3276.8,2.60760041]
[1738264287671,0.6103,3276.9,3276.8,2.60760041]
[1738264292178,0.6103,3276.9,3276.8,3.21791041]
[1738264296071,0.61029,3277.0,3276.9,0.61028]
[1738264296266,1.5082,3277.4,3276.9,2.60760041]
[1738264296482,0.61019,3277.5,3277.4,0.61019]
[1738264296872,0.61019,3277.5,3277.4,0.5273]
[1738264297280,0.6102,3277.4,3277.3,2.60760041]
[1738264297581,0.6102,3277.4,3277.3,3.21782041]
[1738264298286,0.6102,3277.4,3277.3,2.60760041]
[1738264298780,4.2502,3278.0,3277.3,2.60760041]
[1738264298981,5.77544,3278.0,3277.6,2.60760041]
[1738264299183,0.61016,3277.7,3277.6,2.60760041]
[1738264299679,5.77544,3278.0,3277.6,2.60760041]
[1738264299680,2.00947,3278.2,3277.6,5.81540041]
[1738264299881,3.2078,3278.8,3278.1,0.61007]
[1738264300084,0.61002,3278.4,3278.3,2.60760041]
[1738264300473,3.7345,3278.8,3278.0,2.60760041]
[1738264300679,0.61013,3277.8,3277.7,2.60760041]
[1738264302283,0.991,3278.3,3277.7,2.60760041]
[1738264302586,0.61005,3278.2,3278.1,2.60760041]
[1738264305481,0.61005,3278.2,3277.6,0.00457903]
[1738264305482,0.61015,3277.7,3277.6,0.00457903]
[1738264306174,1.12175,3277.7,3277.6,2.61217944]
[1738264306380,0.61015,3277.7,3277.6,2.61217944]
[1738264307482,3.7194,3278.6,3277.6,3.22232944]
[1738264307483,0.61013,3277.8,3277.6,3.22232944]
[1738264307782,0.61015,3277.7,3277.6,2.61217944]
[1738264309385,1.015,3277.9,3277.6,3.22233944]
[1738264309579,0.61015,3277.7,3277.6,2.61217944]
[1738264310189,0.61015,3277.7,3277.6,3.22232944]
[1738264310486,1.52518,3278.2,3277.6,3.22232944]
[1738264310487,0.61014,3277.8,3277.6,3.22234944]
[1738264311787,0.61015,3277.7,3277.6,3.22234944]
[1738264313091,0.61015,3277.7,3277.6,6.43014944]
[1738264314188,0.61015,3277.7,3277.6,5.81997944]
[1738264314993,0.61015,3277.7,3277.6,6.43014944]
[1738264315394,0.61015,3277.7,3277.6,5.81997944]
[1738264316295,1.13945,3277.7,3277.6,5.81997944]
[1738264318993,1.13945,3277.7,3277.6,2.61217944]
[1738264323201,0.61015,3277.7,3277.6,6.43014944]
[1738264324799,0.61013,3277.9,3277.8,0.61011]
[1738264326099,0.61014,3277.8,3277.7,0.61013]
[1738264326596,0.61011,3278.0,3277.9,0.6101]
[1738264326799,0.61011,3278.0,3277.9,3.21770041]
[1738264326988,0.61011,3278.0,3277.9,2.60760041]
[1738264327190,0.61015,3277.7,3277.6,0.00457903]
[1738264327499,0.6102,3277.4,3277.3,2.60760041]
[1738264328197,4.2476,3277.6,3277.0,2.60760041]
[1738264328399,0.61026,3277.1,3277.0,2.60760041]
[1738264328594,0.61026,3277.1,3277.0,2.61217944]
[1738264337704,0.61026,3277.1,3277.0,0.00457903]
[1738264337907,0.61031,3276.8,3276.7,2.60760041]
[1738264338208,0.61043,3276.2,3276.1,2.60760041]
[1738264339303,1.52591,3276.6,3276.0,5.81540041]
[1738264339304,0.61044,3276.1,3276.0,5.81540041]
[1738264341312,0.61044,3276.1,3276.0,2.60760041]
[1738264356221,0.61044,3276.1,3276.0,5.81540041]
[1738264356923,0.61044,3276.1,3276.0,6.30930041]
[1738264365729,2.05831,3276.6,3276.0,8.91690082]
[1738264366039,0.61039,3276.4,3276.3,2.60760041]
[1738264366833,0.61039,3276.4,3276.3,3.21801041]
[1738264372527,0.61039,3276.4,3276.3,2.60760041]
[1738264373127,0.61039,3276.4,3276.3,3.10890041]
[1738264373336,0.61039,3276.4,3276.3,2.60760041]
[1738264373529,0.61044,3276.1,3276.0,5.81540041]
[1738264374628,0.61044,3276.1,3276.0,2.60760041]
[1738264374835,2.60760041,3276.2,3275.8,0.00457903]
[1738264375031,3.81828,3275.9,3275.8,9.03e-06]
[1738264375436,8.81828,3275.9,3275.8,9.03e-06]
[1738264375634,3.81828,3275.9,3275.8,9.03e-06]
[1738264376231,4.30678,3275.9,3275.8,9.03e-06]
[1738264377841,4.30678,3275.9,3275.4,3.21816041]
[1738264377842,3.6963,3275.9,3275.4,3.21816041]
[1738264378140,0.61056,3275.5,3275.4,3.21816041]
[1738264378337,3.6963,3275.9,3275.4,2.60760041]
[1738264378537,0.6105,3275.8,3275.7,3.21811041]
[1738264378731,3.2078,3275.9,3275.7,2.60760041]
[1738264378939,3.81829,3275.9,3275.8,0.6105]
[1738264379338,0.6105,3275.8,3275.7,3.21811041]
[1738264381039,0.6105,3275.8,3275.7,2.60760041]
[1738264381842,0.6105,3275.9,3275.8,0.61049]
[1738264382941,0.61048,3276.0,3275.9,0.61047]
[1738264383247,0.00457903,3276.1,3276.0,0.61046]
[1738264383443,0.00457903,3276.1,3276.0,3.74166041]
[1738264383947,1.0108,3276.7,3276.0,3.13120041]
[1738264384241,0.61023,3277.3,3276.8,0.61031]
[1738264384441,0.5104,3277.6,3277.2,2.60760041]
[1738264384642,1.12056,3277.6,3277.5,2.60760041]
[1738264384941,0.61016,3277.6,3277.5,2.60760041]
[1738264386838,0.61022,3277.3,3277.2,0.00457903]
[1738264392349,6.57922,3277.3,3277.2,0.00457903]
[1738264392552,0.61035,3276.6,3276.5,3.11900041]
[1738264393551,0.61035,3276.6,3276.5,3.72937041]
[1738264393949,4.1768,3277.4,3276.5,3.11900041]
[1738264394151,0.6103,3277.0,3276.9,0.61029]
[1738264394647,3.2078,3277.4,3276.8,2.60760041]
[1738264394852,0.6103,3276.9,3276.8,2.60760041]
[1738264395655,0.6103,3276.9,3276.8,3.21791041]
[1738264396956,0.6103,3276.9,3276.8,2.60760041]
[1738264397650,4.73335,3277.4,3276.8,2.60760041]
[1738264397853,0.61024,3277.2,3277.1,3.21785041]
[1738264398946,1.5369,3277.5,3277.1,5.81540041]
[1738264399250,0.61024,3277.2,3277.1,6.42565041]
[1738264400356,0.61024,3277.2,3277.1,5.81540041]
[1738264400557,0.61024,3277.2,3277.1,6.42566041]
[1738264403149,0.61023,3277.3,3277.2,0.61022]
[1738264403351,0.61023,3277.3,3277.2,1.12952]
[1738264403856,0.61023,3277.3,3277.2,0.5193]
[1738264404353,0.61023,3277.3,3277.2,1.12954]
[1738264405850,0.61023,3277.3,3277.2,0.5193]
[1738264407961,0.61023,3277.3,3277.2,1.12954]
[1738264408258,0.61023,3277.3,3277.2,0.5193]
[1738264409252,0.61023,3277.3,3277.2,1.12954]
[1738264410851,0.61023,3277.3,3277.2,0.5193]
[1738264411253,0.61023,3277.3,3277.2,1.12954]
[1738264412263,0.61023,3277.3,3277.2,1.62354]
[1738264412961,0.61023,3277.3,3277.2,0.494]
[1738264413163,0.61024,3277.2,3277.1,5.81540041]
[1738264413362,0.61024,3277.2,3277.1,2.60760041]
[1738264414263,0.61024,3277.2,3277.1,3.21786041]
[1738264416759,0.61469903,3277.9,3277.8,2.60760041]
[1738264417561,0.00457903,3277.9,3277.7,3.2078]
[1738264417760,0.61016,3277.6,3277.5,2.60760041]
[1738264426864,0.61016,3277.6,3277.5,3.21778041]
[1738264430161,0.61016,3277.6,3277.5,2.60760041]
[1738264430364,0.61016,3277.6,3277.5,3.21778041]
[1738264430563,0.61016,3277.6,3277.5,2.60760041]
[1738264430967,1.52988903,3277.9,3277.3,3.2078]
[1738264430968,0.6102,3277.4,3277.3,3.2078]
[1738264432769,0.6102,3277.4,3277.3,3.7265]
[1738264433166,1.52532,3277.8,3277.3,3.7265]
[1738264433374,1.52532,3277.8,3277.7,2.60760041]
[1738264433375,0.61013,3277.8,3277.7,2.60760041]
[1738264434974,0.61013,3277.8,3277.7,3.14360041]
[1738264438373,0.61013,3277.8,3277.7,3.75375041]
[1738264438673,0.61013,3277.8,3277.7,3.14360041]
[1738264442671,0.61013,3277.8,3277.7,3.75375041]
[1738264442874,0.61013,3277.8,3277.7,3.14360041]
[1738264443573,0.61013,3277.8,3277.7,3.75375041]
[1738264445277,0.61013,3277.8,3277.7,0.536]
[1738264445465,3.21237903,3277.9,3277.3,6.33410041]
[1738264445670,0.6102,3277.4,3277.3,6.32670041]
[1738264446473,1.1363,3277.4,3277.3,6.32670041]
[1738264446674,1.1363,3277.4,3277.3,6.93692041]
[1738264446871,0.6102,3277.4,3277.3,6.93692041]
[1738264448077,0.6102,3277.4,3277.3,6.32670041]
[1738264449778,0.6102,3277.4,3277.3,6.93692041]
[1738264449967,0.6102,3277.4,3277.3,6.32670041]
[1738264460686,0.6102,3277.4,3277.3,4.94849755]
[1738264463078,0.6102,3277.4,3277.3,5.55871755]
[1738264463291,0.6102,3277.4,3277.3,4.94849755]
[1738264465600,0.6102,3277.4,3277.3,5.55871755]
[1738264466399,0.6102,3277.4,3277.3,4.94849755]
[1738264468096,0.6102,3277.4,3277.3,5.55871755]
[1738264468293,4.27397903,3277.9,3277.3,4.94849755]
[1738264468499,0.6102,3277.5,3277.4,1.11558]
[1738264468694,5.79925903,3277.9,3277.4,1.11558]
[1738264468695,0.61017,3277.7,3277.6,0.61015]
[1738264469296,3.73847903,3277.9,3277.5,0.61017]
[1738264469297,0.61018,3277.6,3277.5,0.61017]
[1738264469495,0.61018,3277.6,3277.5,1.83956755]
[1738264469795,0.61018,3277.6,3277.5,1.22939755]
[1738264469993,0.61018,3277.6,3277.5,1.83957755]
[1738264471096,0.61018,3277.6,3277.5,1.22939755]
[1738264471602,0.61018,3277.6,3276.7,1.22939755]
[1738264471603,0.61031,3276.8,3276.7,1.22939755]
[1738264471790,0.61035,3276.6,3276.5,1.22939755]
[1738264472000,3.81815,3276.6,3276.5,1.22939755]
[1738264472190,0.61037,3276.5,3276.4,1.22939755]
[1738264472594,0.61041,3276.3,3276.2,0.00457903]
[1738264477007,7.0928,3276.6,3276.2,0.00457903]
[1738264477008,2.917,3276.6,3276.2,0.00457903]
[1738264477208,2.917,3276.6,3276.3,2.59913708]
[1738264477209,0.6104,3276.4,3276.3,2.59913708]
[1738264477402,0.61041,3276.3,3276.2,0.51467903]
[1738264477803,0.61041,3276.3,3276.2,0.00457903]
[1738264478401,5.61041,3276.3,3276.2,0.00457903]
[1738264478607,1.52611,3276.2,3275.4,0.5101]
[1738264478904,0.61056,3275.5,3275.4,1.12067]
[1738264480709,0.61056,3275.5,3275.4,0.5101]
[1738264481915,0.61056,3275.5,3275.4,1.12067]
[1738264482112,1.05027903,3275.8,3275.4,1.12067]
[1738264482406,0.00457903,3275.8,3275.7,2.59913708]
[1738264482606,0.00457903,3275.8,3275.7,3.73235708]
[1738264487709,0.61041,3276.3,3275.7,3.73235708]
[1738264487918,0.61041,3276.3,3276.2,3.20955708]
[1738264488817,0.61041,3276.3,3276.2,2.59913708]
[1738264489121,0.61041,3276.3,3276.2,3.20955708]
[1738264490913,0.61041,3276.3,3276.2,3.73525708]
[1738264494822,0.00457903,3276.6,3276.2,3.12483708]
[1738264495008,1.52573,3277.0,3276.9,0.61027]
[1738264495009,0.61029,3277.0,3276.9,0.61027]
[1738264495216,0.61028,3277.1,3277.0,0.61026]
[1738264495519,0.61028,3277.1,3277.0,1.63816]
[1738264495715,0.61028,3277.1,3277.0,1.0279]
[1738264496520,0.61028,3277.1,3277.0,1.63817]
[1738264497423,0.61028,3277.1,3277.0,1.0279]
[1738264498023,0.61031,3276.8,3276.7,0.61489903]
[1738264499423,0.61031,3276.8,3276.7,1.65949903]
[1738264500313,0.61031,3276.8,3276.7,1.04917903]
[1738264500514,0.61031,3276.8,3276.7,0.00457903]
[1738264503415,0.61031,3276.8,3276.7,1.63220903]
[1738264503621,0.61031,3276.8,3276.7,1.02187903]
[1738264504417,0.61031,3276.8,3276.7,0.50527903]
[1738264507123,0.61031,3276.8,3276.7,1.11560903]
[1738264507326,0.61027,3277.1,3276.9,0.61029]
[1738264507512,4.73329,3277.5,3277.0,2.59913708]
[1738264507513,3.2078,3277.5,3277.0,2.59913708]
[1738264507716,0.61478903,3277.4,3277.3,3.20935708]
[1738264508119,0.00457903,3277.4,3277.3,3.20935708]
[1738264508722,0.00457903,3277.4,3277.3,6.41715708]
[1738264511825,0.61477903,3277.4,3277.3,6.41715708]
[1738264512033,0.61477903,3277.4,3277.3,3.2078]
[1738264512720,0.00457903,3277.4,3276.9,3.2078]
[1738264513026,0.61031,3276.8,3276.7,0.00457903]
[1738264529842,0.61031,3276.8,3276.7,0.61490903]
[1738264530236,0.61031,3276.8,3276.7,0.00457903]
[1738264530442,0.61031,3276.8,3276.7,0.61490903]
[1738264531844,0.61031,3276.8,3276.7,0.00457903]
[1738264537951,0.61031,3276.8,3276.7,0.61490903]
[1738264538649,0.61031,3276.8,3276.7,0.00457903]
[1738264539550,0.61031,3276.8,3276.7,0.61490903]
[1738264540554,0.61031,3276.8,3276.7,0.00457903]
[1738264543148,0.61031,3276.8,3276.7,9.03e-06]
[1738264543149,3.81811,3276.8,3276.7,9.03e-06]
[1738264552357,0.61031,3276.8,3276.7,9.03e-06]
[1738264552554,3.81811,3276.8,3276.7,9.03e-06]
[1738264558064,8.2078,3276.8,3275.1,0.54743336]
[1738264558260,0.61059,3275.3,3275.2,1.0188]
[1738264559058,4.73412,3275.7,3275.3,0.61056]
[1738264559059,0.61059,3275.4,3275.3,0.61056]
[1738264559265,0.61511903,3275.6,3275.2,5.14444708]
[1738264559456,0.00457903,3275.6,3275.5,3.20968708]
[1738264559657,0.00457903,3275.6,3275.5,3.70858708]
[1738264560863,0.61047,3276.0,3275.9,0.61048]
[1738264561460,0.61051,3275.8,3275.7,0.61051]
[1738264564163,0.00457903,3276.1,3275.5,3.09803708]
[1738264564372,0.61053,3275.7,3275.6,0.61052]
[1738264564865,0.61051,3275.8,3275.7,0.61049]
[1738264565256,0.00457903,3276.1,3275.5,3.09803708]
[1738264565457,0.61055,3275.6,3275.5,0.61053]
[1738264565662,0.61055,3275.6,3275.5,1.12483]
[1738264565862,0.61055,3275.6,3275.5,0.5143]
[1738264566364,0.61055,3275.5,3275.4,3.81837]
[1738264566556,0.61055,3275.5,3275.4,3.2078]
[1738264569666,0.61059,3275.3,3275.2,1.0188]
[1738264569965,0.61059,3275.3,3274.9,0.00457903]
[1738264569966,0.61065,3275.0,3274.9,0.00457903]
[1738264570166,3.81845,3275.0,3274.9,0.00457903]
[1738264574969,0.61065,3275.0,3274.9,0.00457903]
[1738264578466,4.73425,3275.4,3274.9,0.00457903]
[1738264578671,0.61064,3275.1,3275.0,0.61063]
[1738264578871,0.61064,3275.1,3275.0,1.12153]
[1738264579071,0.61064,3275.1,3275.0,0.0109]
[1738264582278,0.61065,3275.0,3274.9,0.00457903]
[1738264583380,0.61065,3275.0,3274.9,0.61524903]
[1738264583879,0.61065,3275.0,3274.9,0.00457903]
[1738264585482,3.81845,3275.0,3274.9,0.00457903]
[1738264586178,3.81845,3275.0,3274.9,9.03e-06]
[1738264586488,0.61083,3274.0,3273.9,3.2078]
[1738264589183,0.61089,3273.7,3273.6,0.00457903]
[1738264596390,1.13169,3273.7,3273.6,0.00457903]
[1738264598195,0.61104,3272.9,3272.8,3.2078]
[1738264598487,0.61104,3272.9,3272.8,3.7329]
[1738264599085,0.61104,3272.9,3272.8,4.34396]
[1738264599494,0.61104,3273.0,3272.9,0.61102]
[1738264600188,0.61104,3272.9,3272.8,6.94308708]
[1738264600393,0.61104,3272.9,3272.8,3.7329]
[1738264601692,0.61104,3272.9,3272.8,0.5251]
[1738264602696,0.61108,3272.7,3272.6,0.4892]
[1738264602995,0.61109,3272.6,3272.5,0.00457903]
[1738264603195,1.09429,3272.6,3272.5,0.00457903]
[1738264605289,0.61117,3272.2,3272.1,0.4934]
[1738264605495,1.52783,3272.5,3271.9,3.2078]
[1738264605496,3.2078,3272.5,3271.9,3.2078]
[1738264605696,0.61121,3272.0,3271.9,3.2078]
[1738264610198,0.61121,3272.0,3271.9,6.41815708]
[1738264610501,0.61573903,3272.3,3272.2,0.61117]
[1738264610800,0.61573903,3272.3,3272.2,0.11117]
[1738264611000,0.61573903,3272.3,3272.2,0.61117]
[1738264614496,0.61573903,3272.3,3272.2,3.21030708]
[1738264615493,0.00457903,3272.3,3272.2,3.21030708]
[1738264615698,0.61108,3272.8,3272.7,0.61105]
[1738264616306,0.61104,3273.0,3272.9,0.61101]
[1738264616706,0.61108,3272.8,3272.7,0.61105]
[1738264618807,0.61106,3272.9,3272.8,0.61104]
[1738264620108,0.61106,3272.8,3272.7,1.11826]
[1738264620598,0.5017,3273.2,3272.8,0.61103]
[1738264620599,0.61105,3272.9,3272.8,0.61103]
[1738264620911,0.61106,3272.8,3272.7,1.11827]
[1738264621209,0.61106,3272.8,3272.7,0.5072]
[1738264621706,0.61113,3272.4,3272.3,3.2078]
[1738264622804,0.61113,3272.4,3272.3,3.81895]
[1738264623000,0.61113,3272.4,3272.3,6.41808708]
[1738264623405,0.4893,3273.0,3272.3,5.80693708]
[1738264623596,0.61107,3272.8,3272.7,0.61106]
[1738264623804,0.61105,3272.9,3272.8,1.12754]
[1738264624308,0.61105,3272.9,3272.8,0.5165]
[1738264624517,0.61105,3272.9,3272.8,1.12756]
[1738264628209,0.00457903,3273.3,3272.8,0.5165]
[1738264628512,0.611,3273.2,3273.1,0.61098]
[1738264628705,0.00457903,3273.3,3272.8,0.5165]
[1738264628902,0.61104,3272.9,3272.8,0.5165]
[1738264630615,0.61111,3272.5,3272.4,3.21024708]
[1738264630809,0.61111,3272.5,3272.4,3.73514708]
[1738264631212,2.59913708,3272.5,3271.6,0.00457903]
[1738264631411,0.61126,3271.7,3271.6,0.00457903]
[1738264633110,1.09586,3271.7,3271.6,0.00457903]
[1738264635019,1.09586,3271.7,3271.6,9.03e-06]
[1738264635214,9.01286,3271.7,3271.6,9.03e-06]
[1738264635405,0.61154,3270.3,3270.2,0.61153]
[1738264635610,0.61152,3270.3,3270.2,0.4927]
[1738264638016,0.00458681,3270.6,3270.5,0.61143]
[1738264638218,0.00458681,3270.6,3270.5,6.41836708]
[1738264638911,0.61134,3271.0,3270.9,0.61135]
[1738264639114,0.61134,3271.0,3270.9,6.41828708]
[1738264640121,0.00458681,3271.3,3271.2,0.61129]
[1738264640416,0.61586681,3271.3,3271.2,3.21042708]
[1738264640621,0.00458681,3271.3,3271.2,3.21042708]
[1738264642718,0.00458681,3271.3,3271.2,3.71302708]
[1738264646022,2.05837,3272.3,3271.2,3.71302708]
[1738264646023,0.5306,3272.3,3271.4,1.52812]
[1738264646226,0.61111,3272.2,3272.0,2.59913708]
[1738264646419,0.5306,3272.3,3272.0,2.59913708]
[1738264646722,0.61117,3271.9,3271.8,1.13587]
[1738264646926,0.61116,3272.0,3271.9,0.61116]
[1738264647923,0.00458681,3272.2,3271.8,0.5247]
[1738264648228,0.61118,3271.8,3271.7,6.41813708]
[1738264648429,0.61117,3272.0,3271.8,0.61117]
[1738264648631,0.61117,3271.9,3271.8,0.61117]
[1738264649228,0.61118,3271.8,3271.7,6.41812708]
[1738264649629,0.61118,3271.9,3271.8,0.61117]
[1738264650028,0.61118,3271.8,3271.7,6.41813708]
[1738264651729,0.00458681,3272.2,3271.7,5.80693708]
[1738264652031,0.61114,3272.1,3272.0,0.61113]
[1738264652423,0.61118,3271.9,3271.8,0.61117]
[1738264652825,0.00458681,3272.2,3271.8,3.2078]
[1738264653021,0.61570681,3272.2,3272.1,0.61113]
[1738264653521,0.61570681,3272.2,3272.1,1.11313]
[1738264654532,0.00458681,3272.2,3271.8,3.2078]
[1738264654740,0.61117,3271.9,3271.8,3.2078]
[1738264659626,0.61117,3271.9,3271.8,3.81898]
[1738264660040,0.61117,3271.9,3271.8,3.2078]
[1738264665138,2.05409681,3272.2,3271.7,3.21033708]
[1738264665446,0.61117,3271.9,3271.8,3.2078]